Cogmind - Beta 16 @@@ ROGUE MODE // 2025.11.22 @ 16:55:31 Player: AlcoholicAardvark Result: Destroyed by G-47 Trooper with Particle Gun Performance ------------- Evolutions (1) 500 Regions Visited (4) 800 Robots Destroyed (38) 190 Value Destroyed (1141) 1141 Prototype IDs (0) 0 Alien Tech Used (0) 0 Bonus (147) 147 TOTAL SCORE: 2778 Bonus ------- Entered Garrisons 200 Friendly Fire -53 Cogmind --------- Core Integrity 0/400 Matter 275/300 Energy 265/265 System Corruption 0% Temperature Warm (198) Movement Walking (120) Location -9/Garrison Parts ------- > --- POWER (1) -------- Improved Ion Engine > --- PROPULSION (3) --- Aluminum Leg Aluminum Leg > --- UTILITY (3) ------ Hacking Suite > --- WEAPON (2) ------- Light Assault Rifle > --- INVENTORY (5) ---- Large Storage Unit Hacking Suite Hacking Suite Peak State ------------ > --- POWER ------------ Improved Ion Engine > --- PROPULSION ------- Aluminum Leg Aluminum Leg Aluminum Leg > --- UTILITY ---------- Large Storage Unit Sensor Array Hacking Suite > --- WEAPON ----------- Light EM Pulse Cannon Heavy Assault Rifle > --- INVENTORY -------- Ion Engine Improved Ion Engine Aluminum Leg Hacking Suite Hacking Suite EM Pulse Gun Medium Laser Assault Rifle Light Assault Rifle [Rating: 15] Favorites ----------- Power Improved Ion Engine Engine Improved Ion Engine Propulsion Aluminum Leg Leg Aluminum Leg Utility Hacking Suite Device Sensor Array Storage Large Storage Unit Hackware Hacking Suite Protection Light Armor Plating Weapon Medium Laser Energy Gun Medium Laser Energy Cannon Light EM Pulse Cannon Ballistic Gun Heavy Assault Rifle Launcher Grenade Launcher Build | -11 -10 -9 -9 -9 ------- Run | Yrd Mat Mat Sto Gar Slots Evolved 2 | . . 2 . . Power . | . . . . . Propulsion 1 | . . 1 . . Utility 1 | . . 1 . . Weapon . | . . . . . Parts Attached 33 | 6 1 10 10 6 Power 6 | 1 . 3 2 . Engine 6 | 1 . 3 2 . Core . | . . . . . Reactor . | . . . . . Propulsion 12 | 2 . 3 4 3 Treads . | . . . . . Leg 12 | 2 . 3 4 3 Wheel . | . . . . . Hover . | . . . . . Flight . | . . . . . Utility 6 | 1 1 3 . 1 Device 1 | . . 1 . . Storage 2 | 1 . 1 . . Processor . | . . . . . Hackware 1 | . 1 . . . Protection 2 | . . 1 . 1 Artifact . | . . . . . Weapon 9 | 2 . 1 4 2 Energy Gun 3 | 2 . . 1 . Energy Cannon 2 | . . . 2 . Ballistic Gun 3 | . . 1 1 1 Ballistic Cannon . | . . . . . Launcher 1 | . . . . 1 Special Weapon . | . . . . . Impact Weapon . | . . . . . Slashing Weapon . | . . . . . Piercing Weapon . | . . . . . Special Melee Weapon . | . . . . . Unidentified Prototypes . | . . . . . Parts Lost 19 | . . 2 10 7 Power 3 | . . . 1 2 Propulsion 6 | . . 1 4 1 Utility 3 | . . 1 . 2 Weapon 7 | . . . 5 2 Highest Loss Streak 5 | . . 1 3 5 To Critical Strikes . | . . . . . Average Backups 6 | . 1 5 9 6 Power 1 | . . 1 2 2 Propulsion . | . . . 1 . Utility 1 | . . 1 2 3 Weapon 1 | . . 2 2 . Tool/Special . | . . . . . Unused Backups 3 | . . . . 3 Power 1 | . . . . 1 Propulsion . | . . . . . Utility 2 | . . . . 2 Weapon . | . . . . . Tool/Special . | . . . . . Average Slot Usage (%) 93 | . 97 92 95 90 Engine 11 | . 14 11 11 9 Leg 29 | . 28 28 29 29 Device 7 | . . 6 11 10 Storage 11 | . 14 11 11 7 Hackware 11 | . 11 11 11 11 Energy Gun 12 | . 28 11 7 9 Energy Cannon 1 | . . . 5 . Ballistic Gun 7 | . . 10 8 9 Peak Build Rating 15 | 6 9 14 15 14 Average Rating 12 | 5 8 12 13 13 On Entrance 8 | . 6 9 14 12 Avg Prop Armor Cover (%) . | . . . . . Naked Turns . | . . . . . Heaviest Build 35 | 14 14 35 35 32 Greatest Support 30 | 20 20 30 30 30 Greatest Overweight (x) 3 | 2 . 3 1 1 Average Overweight (x) . | . . . 1 . Largest Inventory Capacity 15 | 8 8 15 15 15 Average Capacity 13 | 7 8 14 15 12 Most Carried 11 | . 3 9 11 8 Average Carried 6 | . 1 5 9 6 Final Capacity 15 | 8 8 15 15 5 Final Carried 9 | . 3 9 8 3 Class Distribution -------------------- 63% | Scavenger-Mutant 36% | Mutant Dominant Class ---------------- Mutant | -10/Materials Scavenger-Mutant | -9/Materials Scavenger-Mutant | -9/Storage Scavenger-Mutant | -9/Garrison Resources | -11 -10 -9 -9 -9 ----------- Run | Yrd Mat Mat Sto Gar Matter Collected 747 | 243 17 229 144 114 Remotely . | . . . . . Salvage Created 1351 | . 40 620 490 201 Parts 73 | . 3 27 29 14 Haulers Intercepted 1 | . . 1 . . Recyclers Shooed 1 | . . 1 . . Parts Field Recycled . | . . . . . Retrieved Matter . | . . . . . Parts Self-Destructed . | . . . . . Prevented . | . . . . . Parts Restored . | . . . . . Kills | -11 -10 -9 -9 -9 ------- Run | Yrd Mat Mat Sto Gar Combat Hostiles Destroyed 31 | . . 14 9 8 Guns 24 | . . 14 2 8 Cannons 2 | . . . 2 . AOE 3 | . . . 3 . Classes Destroyed 8 | . 2 5 1 . Worker 2 | . 1 . 1 . Builder 1 | . . . 1 . Hauler 1 | . . 1 . . Recycler 2 | . . 1 1 . Operator 1 | . 1 . . . Swarmer 10 | . . 4 1 5 Grunt 14 | . . 6 5 3 Sentry 7 | . . 4 3 . Best Kill Streak 6 | . 1 6 4 3 Combat Bots Only 6 | . . 6 2 3 Max Kills in Single Turn 2 | . 1 1 2 1 Gunslinging . | . . . . . Exploded 2 | . . . 2 . Melee . | . . . . . Uniques/NPCs Destroyed . | . . . . . Combat | -11 -10 -9 -9 -9 -------- Run | Yrd Mat Mat Sto Gar Hostile Shots Fired 242 | . 1 88 50 103 Missed 60 | . 1 17 16 26 Hits 182 | . . 71 34 77 Projectile 182 | . . 71 34 77 Critical Strikes 4 | . . 2 1 1 Part Disruptions 1 | . . . 1 . Damage Taken 2533 | . . 774 886 873 Core 410 | . . 135 117 158 Absorbed by Shields . | . . . . . Core Remaining (%) 100 | 100 100 . . . Volleys Fired 139 | . 2 49 37 51 Largest 2 | . 2 2 2 2 Hottest 108 | . 90 90 108 76 Shots Fired 260 | . 4 98 67 91 Gun 236 | . 4 98 43 91 Cannon 24 | . . . 24 . Launcher . | . . . . . Special . | . . . . . Kinetic 120 | . . 44 25 51 Thermal 101 | . 2 49 10 40 Explosive . | . . . . . Electromagnetic 39 | . 2 5 32 . Robot Hit Streak 22 | . 2 22 9 6 Robot Miss Streak 4 | . . 2 2 4 Penetration Max . | . . . . . Secondary Targets 1 | . . . . 1 Max Gunslinging Chain 1 | . . . . 1 Shots Hit Robots 172 | . 2 75 46 49 Core Hits 62 | . 2 27 17 16 Critical Kills . | . . . . . Critical Parts Destroyed . | . . . . . Critical Strikes 6 | . . 3 . 3 Burn 6 | . . 3 . 3 Melee Attacks . | . . . . . Impact . | . . . . . Slashing . | . . . . . Piercing . | . . . . . Sneak Attacks . | . . . . . Combat Hostiles . | . . . . . Follow-up Attacks . | . . . . . Damage Inflicted 2730 | . 35 1042 1096 557 Guns 1967 | . 27 1027 356 557 Cannons 432 | . . . 432 . Explosions 296 | . . . 296 . Melee . | . . . . . Ramming 35 | . 8 15 12 . Kinetic 935 | . . 487 209 239 Thermal 1268 | . . 503 447 318 Explosive . | . . . . . Electromagnetic 492 | . 27 37 428 . Impact . | . . . . . Slashing . | . . . . . Piercing . | . . . . . Highest Corruption . | . . . . . Average Corruption . | . . . . . Corruption Purged . | . . . . . Corruption Blocked . | . . . . . Overload Shots . | . . . . . Overflow Damage . | . . . . . Projectiles . | . . . . . Explosions . | . . . . . Melee . | . . . . . Knockbacks . | . . . . . Impact . | . . . . . Kinetic . | . . . . . Secondary . | . . . . . Self-Inflicted Damage 100 | . . . 100 . Shots 3 | . . . 3 . Rammed . | . . . . . Targets Rammed 4 | . 1 2 1 . Kicked 4 | . 1 2 1 . Crushed . | . . . . . Highest Temperature 344 | . 30 198 330 344 Average Temperature 90 | . 18 77 66 127 Received Heat Transfer 834 | . . 270 210 354 Effects 3 | . . . . 3 Interference 1 | . . . . 1 Short Circuit 1 | . . . . 1 Damage (minor) 1 | . . . . 1 Siege Activations . | . . . . . Martial Activations . | . . . . . Shielding Activations . | . . . . . Robots Disrupted 1 | . . . 1 . Combat Hostiles 1 | . . . 1 . Robots Corrupted 1 | . . . 1 . Combat Hostiles 1 | . . . 1 . Parts Fried 3 | . . . 3 . Impact Corruptions . | . . . . . Robots Melted 1 | . . . 1 . Combat Hostiles 1 | . . . 1 . Parts Melted 8 | . . 3 2 3 Heat Transferred 3384 | . . 1702 646 1036 Parts Sabotaged . | . . . . . Parts Stolen . | . . . . . Parts Stripped . | . . . . . Power Chain Reactions 4 | . . . 4 . Alert | -11 -10 -9 -9 -9 ------- Run | Yrd Mat Mat Sto Gar Maximum Alert Level 1 | . . . . 1 Low Security (%) 95 | 100 100 100 100 65 Level 1 4 | . . . . 34 Level 2 . | . . . . . Level 3 . | . . . . . Level 4 . | . . . . . Level 5 . | . . . . . High Security . | . . . . . Max Security . | . . . . . Peak Influence 275 | . 6 138 94 275 Initial 3 | . . 1 3 1 Average 48 | . . 67 24 125 Influence Increases 1024 | . 16 400 314 294 Destroy 0b10 Robot/C 620 | . . 280 180 160 Destroy 0b10 Robot/NC 35 | . 10 10 15 . Destroy Leader 152 | . . 92 50 10 Successful Hack 29 | . 6 . 9 14 Anti-Garrison Action 50 | . . . . 50 Destroy Structure 18 | . . 3 15 . Lose Combat Pursuer 120 | . . 15 45 60 Influence Decreases 799 | . 11 395 321 72 Entered New Map 13 | . . 4 7 2 Time Decay 653 | . 11 371 271 . Lost Part 133 | . . 20 43 70 Squads Dispatched 11 | . . 4 7 . Investigation 3 | . . 1 2 . Extermination . | . . . . . Reinforcement 5 | . . 3 2 . Assault . | . . . . . Garrison 3 | . . . 3 . Intercept . | . . . . . Searches Triggered . | . . . . . Construction Impeded . | . . . . . Haulers Reinforced . | . . . . . Active Scanning Responses . | . . . . . Cargo Convoy Interrupts . | . . . . . Stealth | -11 -10 -9 -9 -9 --------- Run | Yrd Mat Mat Sto Gar Distress Signals 4 | . . 1 3 . Communications Jammed . | . . . . . Distress Signals . | . . . . . Times Spotted 72 | . 5 22 32 13 Peak Tracking Total 6 | . 3 4 5 6 Tactical Retreats 6 | . . 1 3 2 Traps | -11 -10 -9 -9 -9 ------- Run | Yrd Mat Mat Sto Gar Traps Triggered 5 | . . 1 3 1 Indirectly . | . . . . . Trap Hack Attempts . | . . . . . Triggered . | . . . . . Disarmed . | . . . . . Reprogrammed . | . . . . . Reused . | . . . . . Traps Extracted . | . . . . . Installed . | . . . . . Triggered . | . . . . . Machines | -11 -10 -9 -9 -9 ---------- Run | Yrd Mat Mat Sto Gar Machines Disabled 1 | . . . . 1 Max in Single Turn 1 | . . . . 1 Garrison Relay 1 | . . . . 1 Machines Repaired . | . . . . . Machines Dismantled . | . . . . . Machines Sabotaged . | . . . . . Overloaded Fab Kills . | . . . . . Hacking | -11 -10 -9 -9 -9 --------- Run | Yrd Mat Mat Sto Gar Machines Accessed 9 | . 4 . 4 1 Terminals 6 | . 2 . 3 1 Fabricators . | . . . . . Repair Stations . | . . . . . Recycling Units 2 | . 2 . . . Scanalyzers . | . . . . . Garrison Access 1 | . . . 1 . Total Hacks 19 | . 9 . 6 4 Successful 6 | . 2 . 3 1 Failed 13 | . 7 . 3 3 Catastrophic 5 | . 3 . 1 1 Database Lockouts . | . . . . . Manual 7 | . 3 . 3 1 Terminals 13 | . 4 . 5 4 Fabricators . | . . . . . Repair Stations . | . . . . . Recycling Units 5 | . 5 . . . Scanalyzers . | . . . . . Garrison Access 1 | . . . 1 . Terminal Hacks 4 | . 1 . 2 1 Open Door 1 | . . . 1 . Level Access Points 2 | . 1 . 1 . Security Stations 1 | . . . . 1 Fabricator Hacks . | . . . . . Repair Station Hacks . | . . . . . Recycling Unit Hacks 1 | . 1 . . . Retrieve Components 1 | . 1 . . . Scanalyzer . | . . . . . Garrison Access Hacks 1 | . . . 1 . Unlock Access 1 | . . . 1 . Unauthorized Hacks . | . . . . . Terminals . | . . . . . Fabricators . | . . . . . Repair Stations . | . . . . . Recycling Units . | . . . . . Scanalyzers . | . . . . . Garrison Access . | . . . . . Data Cores Recovered 1 | . 1 . . . Used 1 | . 1 . . . Hacking Detections 6 | . 3 . 2 1 Full Trace Events 1 | . . . 1 . Feedback Events . | . . . . . Feedback Blocked . | . . . . . Robot Schematics Acquired . | . . . . . Robots Built . | . . . . . Authchips . | . . . . . Time . | . . . . . Total Robot Build Rating . | . . . . . Part Schematics Acquired . | . . . . . Parts Built . | . . . . . Authchips . | . . . . . Time . | . . . . . Total Part Build Rating . | . . . . . Part Studies Acquired . | . . . . . Parts Repaired . | . . . . . Time . | . . . . . Parts Recycled . | . . . . . Recycled Matter . | . . . . . Retrieved Matter . | . . . . . Retrieved Components . | . . . . . Parts Scanalyzed . | . . . . . Part Schematics Acquired . | . . . . . Parts Damaged . | . . . . . Bothacking | -11 -10 -9 -9 -9 ------------ Run | Yrd Mat Mat Sto Gar Used RIF Installer . | . . . . . Robots Hacked . | . . . . . Non-combat . | . . . . . Combat . | . . . . . Robot Hacks Applied . | . . . . . Relay Couplers Released 3 | . . . . 3 Machine Destruction 3 | . . . . 3 Fabnet Peak Effective % . | . . . . . Robots Rewired . | . . . . . Allies Hacked . | . . . . . Hacks Repelled . | . . . . . Allies | -11 -10 -9 -9 -9 -------- Run | Yrd Mat Mat Sto Gar Total Allies . | . . . . . Largest Group . | . . . . . Highest-Rated Group . | . . . . . Highest-Rated Ally . | . . . . . Total Orders . | . . . . . Ally Attacks . | . . . . . Total Damage . | . . . . . Kills . | . . . . . Allies Corrupted . | . . . . . Allies Melted . | . . . . . Intel | -11 -10 -9 -9 -9 ------- Run | Yrd Mat Mat Sto Gar Active Infowar (turns) 1650 | . . 542 802 306 Sensors 1650 | . . 542 802 306 Robot Analysis Total . | . . . . . Derelict Logs Recovered . | . . . . . Drone Launches . | . . . . . Drone Recoveries . | . . . . . Exploration | -11 -10 -9 -9 -9 ------------- Run | Yrd Mat Mat Sto Gar Turns Passed 2442 | 77 353 897 802 313 Spaces Moved 1002 | 59 240 336 284 83 Core 6 | 6 . . . . Treads . | . . . . . Legs 996 | 53 240 336 284 83 Wheels . | . . . . . Hover . | . . . . . Flight . | . . . . . Fastest Speed 50 | 50 120 120 190 120 Average Speed 168 | 116 120 189 190 181 Slowest Speed 330 | 150 120 330 190 190 Overloaded Moves . | . . . . . Propulsion Burnouts . | . . . . . Robots Hopped . | . . . . . Potential Cave-ins . | . . . . . Cave-ins Triggered . | . . . . . Exploration Rate (%) 26 | 4 31 29 60 10 Regions Visited 4 Branch Regions 1 Pre-discovered Areas . | . . . . . Known Exits Taken 2 | . 1 . 1 . Unknown Exits Taken 2 | 1 . 1 . . Scrap Searched . | . . . . . Spaces Dug . | . . . . . Terrain Destroyed 9 | . . . 9 . Melee . | . . . . . Projectile . | . . . . . AOE 9 | . . . 9 . Terrain Rammed . | . . . . . Walls Destroyed . | . . . . . Machines Disabled . | . . . . . Actions | -11 -10 -9 -9 -9 --------- Run | Yrd Mat Mat Sto Gar Total 1497 | 64 300 493 477 163 Wait 293 | . 54 88 134 17 Move 999 | 58 239 335 284 83 Hop . | . . . . . Pick Up 14 | . 3 6 5 . Fast Attach 12 | 6 1 3 1 1 Attach 12 | . . 1 7 4 Detach . | . . . . . Swap 16 | . . 6 5 5 Drop 8 | . . 3 3 2 Fire 139 | . 2 49 37 51 Melee . | . . . . . Ram . | . . . . . Kick 4 | . 1 2 1 . Crush . | . . . . . Escape Stasis . | . . . . . Rewire . | . . . . . Trap . | . . . . . Miscellaneous . | . . . . . Route ------- -11/Scrapyard -10/Materials (discovered 3 exits: *Mat x3) -9/Materials -9/Storage (discovered 2 exits: *Mat / Gar) -9/Garrison History --------- Turn | Location | Event 2 | -11/Scrapyard | Met Revision 17 8 | -11/Scrapyard | Discovered new exit (range 16) 78 | -11/Scrapyard | Entered Materials 147 | -10/Materials | Identified exit to Materials 315 | -10/Materials | Build established: Mutant 431 | -10/Materials | Entered another Materials area 431 | -9/Materials | Evolved 2 slots: Propulsion x1, Utility x1 780 | -9/Materials | Discovered new exit (range 5) 883 | -9/Materials | Build established: Scavenger-Mutant 1328 | -9/Materials | Entered Storage 1422 | -9/Storage | Met 01-MTF 1516 | -9/Storage | Core integrity fell below 50% 1645 | -9/Storage | Garrison activated, responded to threat 1762 | -9/Storage | Identified exit to Materials 2005 | -9/Storage | Lost 3 parts (1n2w) 2085 | -9/Storage | Lost 3 parts (2n1w) 2130 | -9/Storage | Identified exit to Garrison 2130 | -9/Storage | Entered Garrison 2130 | -9/Garrison | Accompanied by 1 ally (01-MTF) 2133 | -9/Garrison | 01-MTF left 2167 | -9/Garrison | Learned Recycling security intel 2244 | -9/Garrison | Garrison Relay disabled 2350 | -9/Garrison | Core integrity fell below 20% 2443 | -9/Garrison | Destroyed by G-47 Trooper with Particle Gun Last Messages --------------- S-10 Pest destroyed. Switching to secondary target: S-10 Pest. G-34 Mercenary suffers critical hit (Burn). G-34 Mercenary destroyed. S-10 Pest destroyed. Aluminum Leg broken. Overheating: Short circuit. Overheating: Imp. Ion Engine damaged (-3). Imp. Ion Engine destroyed. Dropped Aluminum Leg. Dropped Broken Aluminum Leg. Acquired 19 matter. Aluminum Leg destroyed. Critical hit (Burn: +37). G-47 Trooper suffers critical hit (Burn). Beam Rifle destroyed. Lgt. Armor Plating destroyed. Overheating: System interference. Sensor Array temporarily disabled. Sensor Array destroyed. Map ----- +----------------------------------------------------+ | ?????????????????????????????????????????????????? | | ?????????????????????????????????????????????????? | | ?????????????????????????????????????????????????? | | ?????????????????????????????????????????????????? | | ?????????????????????????????????????????????????? | | ?????????????????????????????????????????????????? | | ?????????????????????????????????????????????????? | | ?????????????????????????????????????????????????? | | ?????????????????????????????????????????????????? | | ?????????????????????????????????????????????????? | | ?????????????????????????????????????????????????? | | ?????????????????????????????????????????????????? | | ?????????????????????????????????????????????????? | | ?????????????????????????????????????????????????? | | ?????????????????????????????????????????????????? | | ?????????????????????????????????????????????????? | | ?????????????????????????????????????????????????? | | ?????????????????????????????????????????????????? | | ?????????????????????????????????????????????????? | | ?????????????????????????????????????????????????? | | ?????????????????????????????????????????????????? | | ???????????????????????########### ## ??????? | | ???????????????????????#%[[*[* ??????? | | ???????????????????????#=%%=* ^ ??????? | | ???????????????????????#=g######## ^ ??????? | | ???????????????????????#=@#??????????????????????? | | ???????????????????????#=[#??????????????????????? | | ???????????????????????#=!#??????????????????????? | | ???????????????????????# #??????????????????????? | | ???????????????????????# +??????????????????????? | | ???????????????????????# #??????????????????????? | | ???????????????????????# #??????????????????????? | | ???????????????????????# #??????????????????????? | | ???????????????????????# #??????????????????????? | | ??????????????########## #??????????????????????? | | ??????????????# #??????????????????????? | | ??????????????# #??????????????????????? | | ??????????????# ##### ###??????????????????????? | | ??????????????# #???# #????????????????????????? | | ??????????????#####???# #???????????####?????????? | | ????????????????#####?# #??????????" ""#?????????? | | ????????????????#"T"###%###########!!!##?????????? | | ????????????????#" * #?????????? | | ????????????????############# ########?????????? | | ????????????????????????????# #????????????????? | | ????????????????????????????#####????????????????? | | ?????????????????????????????????????????????????? | | ?????????????????????????????????????????????????? | | ?????????????????????????????????????????????????? | | ?????????????????????????????????????????????????? | +----------------------------------------------------+ Best States ------------- Heat Dissipation 28 Energy Generation 12 Energy Capacity 265 Matter Stores 300 Matter Capacity 300 Sight Range 16 Robot Scan Range 14 Terrain Scan Density 10 Armor Coverage 150 Evasion (%) 55 Offensive Hacking 10 Item Schematics ----------------- None Robot Schematics ------------------ None Fabricated ------------ Nothing Repaired ---------- Nothing Studied --------- None Alien Tech Used ----------------- None Achievements -------------- None Challenges ------------ None Game ------ Seed DeepBlastMegatreads Manual? 0 Play Time 00:29:43 Cumulative 11.5 hours Start 2025.11.22 @ 16:18:36 End 2025.11.22 @ 16:55:31 Sessions 1 Manual Loads 0 Difficulty Rogue Special Mode None Game No. 17 Rogue 17 Adventurer 0 Explorer 0 Win Type - Total 0 Types 0/0/0/0/0/0/0/0/0/0 Lore% 5 Gallery% 15 Achievement% 13 Wizard Run 0 Options --------- Layout 1 ASCII 0 Keyboard 0 Movement Mouse Keybinds 0 Fullscreen 1 Font 32/SmallcapsGlow Map View 50x35 Zoom Use 4% Tactical HUD 0 Map Filters NONE Filters NONE Steam 1 RUN: 550987c6-9aa2-4943-8a80-79a5a18f879a